fUSD/lending_fUSD_20250304
["ID","MTS","AMOUNT","RATE_DAILY","PERIOD"]
[355315861,1741063848043,-707.33,0.00012967,2]
[355315863,1741063848052,-2191.49,0.00012967,2]
[355315865,1741063848062,-3748.52,0.00012967,2]
[355315867,1741063848072,-500.0,0.00012967,2]
[355315869,1741063848082,-1915.65,0.00012967,2]
[355315871,1741063848091,-701.82,0.00012967,2]
[355315873,1741063848101,-500.0,0.00012967,2]
[355315875,1741063848111,-5136.9,0.00012967,2]
[355315877,1741063848119,-4588.02,0.00012967,2]
[355315879,1741063848129,-2821.02,0.00012967,2]
[355315881,1741063848139,-500.0,0.00012967,2]
[355315883,1741063848149,-1545.65,0.00012967,2]
[355315885,1741063848159,-803.05,0.00012967,2]
[355315886,1741063848172,-500.0,0.00012967,2]
[355315889,1741063848181,-1401.82,0.00012967,2]
[355315890,1741063848191,-500.0,0.00012967,2]
[355315892,1741063848203,-903.3,0.00012967,2]
[355315894,1741063848213,-2055.47,0.00012967,2]
[355315897,1741063848223,-1480.87,0.00012967,2]
[355315898,1741063848233,-500.0,0.00012967,2]
[355315900,1741063848243,-500.0,0.00012967,2]
[355315902,1741063848253,-5636.79,0.00012967,2]
[355315904,1741063848262,-1443.34,0.00012967,2]
[355315906,1741063848272,-601.95487287,0.00012967,2]
[355315908,1741063848282,-977.82,0.00012967,2]
[355315910,1741063848292,-1152.1,0.00012967,2]
[355315912,1741063848302,-2563.37,0.00012967,2]
[355315914,1741063848313,-590.18,0.00012967,2]
[355315916,1741063848323,-2441.58,0.00012967,2]
[355315918,1741063848333,-500.0,0.00012967,2]
[355315920,1741063848343,-910.38,0.00012967,2]
[355315922,1741063848353,-1002.98,0.00012967,2]
[355315924,1741063848362,-1702.66,0.00012967,2]
[355315926,1741063848371,-500.0,0.00012967,2]
[355315928,1741063848381,-2749.89,0.00012967,2]
[355315930,1741063848391,-3654.99,0.00012967,2]
[355315932,1741063848400,-500.0,0.00012967,2]
[355315934,1741063848410,-1164.22,0.00012967,2]
[355315936,1741063848420,-3559.69,0.00012967,2]
[355315938,1741063848429,-480.0852628,0.00012967,2]
[355315940,1741063848439,-663.46,0.00012967,2]
[355315942,1741063848449,-670.95,0.00012967,2]
[355315944,1741063848459,-2623.92,0.00012967,2]
[355315946,1741063848469,-2506.64,0.00012967,2]
[355315948,1741063848479,-665.93,0.00012967,2]
[355315950,1741063848489,-500.0,0.00012967,2]
[355315952,1741063848499,-2428.89,0.00012967,2]
[355315955,1741063848510,-536.12,0.00012967,2]
[355315957,1741063848520,-3275.53,0.00012967,2]
[355315959,1741063848533,-740.75,0.00012967,2]
[355315961,1741063848543,-2539.41,0.00012967,2]
[355315963,1741063848553,-1995.76,0.00012967,2]
[355315965,1741063848564,-558.05,0.00012967,2]
[355315967,1741063848574,-828.52,0.00012967,2]
[355315968,1741063848584,-5899.04,0.00012967,2]
[355315971,1741063848594,-500.0,0.00012967,2]
[355315973,1741063848604,-3188.7,0.00012967,2]
[355315975,1741063848614,-637.41,0.00012967,2]
[355315977,1741063848624,-1763.99,0.00012967,2]
[355315979,1741063848634,-500.0,0.00012967,2]
[355315981,1741063848644,-500.0,0.00012967,2]
[355315982,1741063848654,-10548.74,0.00012967,2]
[355315984,1741063848664,-15330.18,0.00012967,2]
[355315987,1741063848674,-653.17,0.00012967,2]
[355315989,1741063848685,-161.88016435,0.00012967,2]
[355315991,1741063848695,-2153.7,0.00012967,2]
[355315992,1741063848704,-2421.15,0.00012967,2]
[355315995,1741063848714,-318.85372848,0.00012967,2]
[355315997,1741063848724,-431.13716083,0.00012967,2]
[355315998,1741063848734,-559.0,0.00012967,2]
[355316000,1741063848743,-1931.72,0.00012967,2]
[355316002,1741063848754,-4166.0,0.00012968,2]
[355316004,1741063848763,-500.0,0.00012968,2]
[355316006,1741063848773,-759.7,0.00012968,2]
[355316009,1741063848793,-906.79,0.00012968,2]
[355316010,1741063848802,-897.09,0.00012968,2]
[355316012,1741063848812,-1061.16,0.00012968,2]
[355316014,1741063848822,-1355.75,0.00012968,2]
[355316017,1741063848832,-1925.49,0.00012968,2]
[355316019,1741063848842,-500.0,0.00012968,2]
[355316021,1741063848851,-1180.38,0.00012968,2]
[355316023,1741063848862,-1349.94,0.00012968,2]
[355316024,1741063848871,-500.0,0.00012968,2]
[355316027,1741063848881,-983.42,0.00012968,2]
[355316029,1741063848891,-1480.98,0.00012968,2]
[355316031,1741063848901,-500.0,0.00012968,2]
[355316033,1741063848911,-1177.71,0.00012968,2]
[355316035,1741063848921,-500.0,0.00012968,2]
[355316037,1741063848931,-1595.65,0.00012968,2]
[355316039,1741063848942,-507.31721852,0.00012968,2]
[355316041,1741063848952,-697.8,0.00012968,2]
[355316043,1741063848961,-854.82,0.00012968,2]
[355316045,1741063848971,-1430.85,0.00012968,2]
[355316047,1741063848982,-500.0,0.00012968,2]
[355316049,1741063848992,-2068.47,0.00012968,2]
[355316051,1741063849003,-562.26,0.00012968,2]
[355316053,1741063849012,-1168.35,0.00012968,2]
[355316055,1741063849023,-1258.34,0.00012968,2]
[355316057,1741063849034,-1363.12,0.00012968,2]
[355316059,1741063849044,-889.75,0.00012968,2]
[355316061,1741063849053,-673.67,0.00012968,2]
[355316063,1741063849063,-517.48940156,0.00012968,2]
[355316065,1741063849073,-932.62,0.00012968,2]
[355316066,1741063849083,-500.0,0.00012968,2]
[355316068,1741063849093,-717.08,0.00012968,2]
[355316070,1741063849103,-1273.67,0.00012968,2]
[355316072,1741063849113,-528.27353447,0.00012968,2]
[355316074,1741063849122,-1040.44,0.00012968,2]
[355316076,1741063849133,-731.5,0.00012968,2]
[355316078,1741063849144,-819.32,0.00012968,2]
[355316080,1741063849158,-500.0,0.00012968,2]
[355316082,1741063849169,-997.17,0.00012968,2]
[355316084,1741063849179,-500.0,0.00012968,2]
[355316086,1741063849189,-959.6,0.00012968,2]
[355316088,1741063849201,-1427.99,0.00012968,2]
[355316090,1741063849211,-1756.91,0.00012968,2]
[355316092,1741063849222,-1056.01,0.00012968,2]
[355316110,1741063849402,-500.0,0.00012968,2]
[355316112,1741063849413,-421.28297354,0.00012968,2]
[355316114,1741063849423,-838.46,0.00012968,2]
[355316116,1741063849433,-1411.06,0.00012968,2]
[355316118,1741063849443,-574.33,0.00012968,2]
[355316120,1741063849453,-1501.78,0.00012968,2]
[355316122,1741063849462,-500.0,0.00012968,2]
[355316124,1741063849472,-1300.58,0.00012968,2]
[355316126,1741063849481,-741.5,0.00012968,2]
[355316128,1741063849490,-1076.13,0.00012968,2]
[355316130,1741063849500,-780.24,0.00012968,2]
[355316132,1741063849510,-708.12,0.00012968,2]
[355316133,1741063849521,-1990.35,0.00012968,2]
[355316135,1741063849531,-500.0,0.00012968,2]
[355316137,1741063849540,-1058.19,0.00012968,2]
[355316139,1741063849549,-1096.52,0.00012968,2]
[355316141,1741063849559,-1101.71,0.00012968,2]
[355316143,1741063849569,-500.0,0.00012968,2]
[355316145,1741063849579,-2908.4,0.00012968,2]
[355316147,1741063849589,-500.0,0.00012968,2]
[355316149,1741063849598,-816.09,0.00012968,2]
[355316151,1741063849608,-1024.15,0.00012968,2]
[355316153,1741063849618,-2280.4,0.00012968,2]
[355316155,1741063849627,-766.43,0.00012968,2]
[355316157,1741063849637,-2761.3,0.00012968,2]
[355316159,1741063849646,-1320.78,0.00012968,2]
[355316161,1741063849656,-500.0,0.00012968,2]
[355316163,1741063849665,-2039.91,0.00012968,2]
[355316165,1741063849675,-686.95,0.00012968,2]
[355316167,1741063849685,-2450.63,0.00012968,2]
[355316169,1741063849695,-916.17,0.00012968,2]
[355316171,1741063849704,-3381.66,0.00012968,2]
[355316173,1741063849714,-609.8,0.00012968,2]
[355316175,1741063849723,-2623.88,0.00012968,2]
[355316177,1741063849732,-500.0,0.00012968,2]
[355316179,1741063849742,-1789.65,0.00012968,2]
[355316181,1741063849752,-3033.04,0.00012968,2]
[355316183,1741063849762,-1317.7,0.00012968,2]
[355316185,1741063849771,-500.0,0.00012968,2]
[355316187,1741063849781,-27114.27,0.00012968,2]
[355316189,1741063849791,-4232.16,0.00012968,2]
[355316191,1741063849801,-3145.75,0.00012968,2]
[355316192,1741063849811,-1463.51,0.00012968,2]
[355316194,1741063849821,-552.23,0.00012968,2]
[355316196,1741063849831,-1874.32,0.00012968,2]
[355316198,1741063849843,-20880.05,0.00012968,2]
[355316200,1741063849853,-6936.59,0.00012968,2]
[355316202,1741063849863,-500.0,0.00012968,2]
[355316204,1741063849873,-500.0,0.00012968,2]
[355316206,1741063849883,-2883.33,0.00012968,2]
[355316208,1741063849892,-1305.65,0.00012968,2]
[355316210,1741063849901,-1292.93,0.00012968,2]
[355316212,1741063849911,-500.0,0.00012968,2]
[355316214,1741063849920,-4211.01,0.00012968,2]
[355316216,1741063849929,-500.0,0.00012968,2]
[355316217,1741063849939,-4959.15,0.00012968,2]
[355316219,1741063849948,-806.01,0.00012968,2]
[355316221,1741063849958,-1747.6,0.00012968,2]
[355316223,1741063849967,-3780.2,0.00012968,2]
[355316225,1741063849977,-2175.42,0.00012968,2]
[355316227,1741063849988,-4855.44,0.00012968,2]
[355316229,1741063849997,-1856.07,0.00012968,2]
[355316231,1741063850007,-700.71,0.00012968,2]
[355316233,1741063850017,-1360.0,0.00012968,2]
[355316235,1741063850029,-2264.61,0.00012968,2]
[355316237,1741063850039,-3142.97,0.00012968,2]
[355316239,1741063850048,-5215.71,0.00012968,2]
[355316241,1741063850058,-500.0,0.00012968,2]
[355316243,1741063850067,-2230.11,0.00012968,2]
[355316245,1741063850076,-1597.97,0.00012968,2]
[355316247,1741063850085,-3154.86,0.00012968,2]
[355316249,1741063850095,-3905.13,0.00012968,2]
[355316251,1741063850104,-3398.68,0.00012968,2]
[355316252,1741063850114,-3114.79,0.00012968,2]
[355316254,1741063850123,-1025.25,0.00012968,2]
[355316256,1741063850132,-500.0,0.00012968,2]
[355316258,1741063850142,-3339.17,0.00012968,2]
[355316260,1741063850152,-3587.87,0.00012968,2]
[355316262,1741063850163,-500.0,0.00012968,2]
[355316264,1741063850173,-1293.89,0.00012969,2]
[355316266,1741063850183,-1240.94,0.00012969,2]
[355316268,1741063850192,-500.0,0.00012969,2]
[355316270,1741063850203,-500.0,0.00012969,2]
[355316272,1741063850212,-500.0,0.00012969,2]
[355316274,1741063850222,-1402.56,0.00012969,2]
[355316276,1741063850231,-500.0,0.00012969,2]
[355316278,1741063850243,-1168.27,0.00012969,2]
[355316280,1741063850253,-1212.14,0.00012969,2]
[355316282,1741063850262,-2020.66,0.00012969,2]
[355316283,1741063850273,-1611.73,0.00012969,2]
[355316285,1741063850282,-1346.38,0.00012969,2]
[355316287,1741063850292,-500.0,0.00012969,2]
[355316289,1741063850301,-500.0,0.00012969,2]
[355316291,1741063850312,-2047.7,0.00012969,2]
[355316293,1741063850322,-1084.01,0.00012969,2]
[355316295,1741063850331,-1340.11,0.00012969,2]
[355316297,1741063850341,-500.0,0.00012969,2]
[355316299,1741063850351,-1837.65,0.00012969,2]
[355316301,1741063850360,-1022.36,0.00012969,2]
[355316303,1741063850369,-2917.15,0.00012969,2]
[355316305,1741063850378,-2074.95,0.00012969,2]
[355316307,1741063850388,-1939.02,0.00012969,2]
[355316309,1741063850397,-1566.97,0.00012969,2]
[355316311,1741063850406,-2508.08,0.00012969,2]
[355316313,1741063850415,-1096.51,0.00012969,2]
[355316315,1741063850425,-963.34,0.00012969,2]
[355316316,1741063850434,-1426.77,0.00012969,2]
[355316318,1741063850444,-1826.65,0.00012969,2]
[355316320,1741063850454,-2303.77,0.00012969,2]
[355316322,1741063850464,-1100.67,0.00012969,2]
[355316324,1741063850473,-2272.54,0.00012969,2]
[355316326,1741063850483,-1247.1,0.00012969,2]
[355316328,1741063850492,-500.0,0.00012969,2]
[355316330,1741063850502,-749.69,0.00012969,2]
[355316332,1741063850511,-500.0,0.00012969,2]
[355316334,1741063850521,-2595.47,0.00012969,2]
[355316336,1741063850531,-1405.42,0.00012969,2]
[355316338,1741063850541,-500.0,0.00012969,2]
[355316340,1741063850551,-1346.98,0.00012969,2]
[355316342,1741063850561,-500.0,0.00012969,2]
[355316344,1741063850570,-1000.0,0.0001297,2]
[355316346,1741063850579,-1000.0,0.0001297,2]
[355316348,1741063850589,-1000.0,0.0001297,2]
[355316350,1741063850599,-1389.71821135,0.0001297,2]
[355316352,1741063850610,-500.0,0.0001297,2]
[355316354,1741063850619,-500.0,0.0001297,2]
[355316356,1741063850629,-689.16,0.0001297,2]
[355316358,1741063850639,-500.0,0.0001297,2]
[355316360,1741063850649,-500.0,0.0001297,2]
[355316362,1741063850658,-313.56283141,0.0001297,2]
[355316364,1741063850667,-823.9,0.0001297,2]
[355316366,1741063850677,-175.29045356,0.0001297,2]
[355316368,1741063850686,-777.51,0.0001297,2]
[355316370,1741063850696,-508.8260858,0.0001297,2]
[355316371,1741063850706,-500.0,0.0001297,2]
[355316373,1741063850715,-893.94,0.0001297,2]
[355316375,1741063850724,-500.0,0.0001297,2]
[355316377,1741063850733,-514.03,0.0001297,2]
[355316379,1741063850743,-500.0,0.0001297,2]
[355316381,1741063850753,-522.846505,0.0001297,2]
[355316383,1741063850762,-500.0,0.0001297,2]
[355316385,1741063850771,-246.41715741,0.0001297,2]
[355316387,1741063850782,-500.0,0.0001297,2]
[355316389,1741063850791,-1076.75,0.0001297,2]
[355316391,1741063850800,-566.30003071,0.0001297,2]
[355316393,1741063850810,-500.0,0.0001297,2]
[355316395,1741063850820,-871.09,0.0001297,2]
[355316397,1741063850830,-500.0,0.0001297,2]
[355316399,1741063850839,-811.22,0.0001297,2]
[355316401,1741063850849,-504.58,0.0001297,2]
[355316403,1741063850858,-520.53,0.0001297,2]
[355316404,1741063850868,-587.56,0.0001297,2]
[355316406,1741063850878,-500.0,0.0001297,2]
[355316408,1741063850888,-500.0,0.0001297,2]
[355316410,1741063850898,-631.23,0.0001297,2]
[355316412,1741063850907,-500.0,0.0001297,2]
[355316414,1741063850917,-575.97,0.0001297,2]
[355316416,1741063850927,-559.14,0.0001297,2]
[355316418,1741063850937,-1200.6,0.0001297,2]
[355316420,1741063850947,-500.0,0.0001297,2]
[355316422,1741063850957,-500.0,0.0001297,2]
[355316424,1741063850967,-1186.06,0.0001297,2]
[355316426,1741063850977,-520.69687891,0.0001297,2]
[355316428,1741063850987,-1180.09,0.0001297,2]
[355316430,1741063850996,-1146.71,0.0001297,2]
[355316432,1741063851006,-675.35,0.0001297,2]
[355316434,1741063851016,-500.0,0.0001297,2]
[355316436,1741063851026,-500.0,0.0001297,2]
[355316438,1741063851037,-500.0,0.0001297,2]
[355316440,1741063851046,-656.54,0.0001297,2]
[355316442,1741063851056,-801.94,0.0001297,2]
[355316444,1741063851065,-168.19389338,0.0001297,2]
[355316446,1741063851074,-500.0,0.0001297,2]
[355316448,1741063851084,-658.98,0.0001297,2]
[355316450,1741063851093,-1254.34,0.0001297,2]
[355316451,1741063851103,-1023.96,0.0001297,2]
[355316453,1741063851112,-500.0,0.0001297,2]
[355316455,1741063851122,-550.94,0.0001297,2]
[355316457,1741063851131,-596.06997044,0.0001297,2]
[355316459,1741063851141,-513.3930891,0.0001297,2]
[355316461,1741063851151,-500.0,0.0001297,2]
[355316463,1741063851162,-636.6,0.0001297,2]
[355316465,1741063851173,-880.61,0.0001297,2]
[355316467,1741063851182,-500.0,0.0001297,2]
[355316469,1741063851192,-585.49,0.0001297,2]
[355316471,1741063851203,-966.74,0.0001297,2]
[355316473,1741063851212,-500.0,0.0001297,2]
[355316475,1741063851222,-646.63,0.0001297,2]
[355316477,1741063851232,-686.15,0.0001297,2]
[355316479,1741063851242,-587.47,0.0001297,2]
[355316481,1741063851251,-299.1,0.0001297,2]
[355316483,1741063851261,-500.0,0.0001297,2]
[355316485,1741063851271,-228.97292205,0.0001297,2]
[355316487,1741063851281,-500.0,0.0001297,2]
[355316489,1741063851291,-500.0,0.0001297,2]
[355316491,1741063851301,-500.0,0.0001297,2]
[355316492,1741063851311,-941.44,0.0001297,2]
[355316494,1741063851320,-500.0,0.0001297,2]
[355316495,1741063851329,-500.0,0.0001297,2]
[355316496,1741063851338,-184.38,0.0001297,2]
[355316497,1741063851348,-990.46,0.0001297,2]
[355316498,1741063851357,-671.66,0.0001297,2]
[355316499,1741063851366,-761.3,0.0001297,2]
[355316500,1741063851375,-500.0,0.0001297,2]
[355316501,1741063851384,-1267.5,0.0001297,2]
[355316502,1741063851394,-500.0,0.0001297,2]
[355316503,1741063851404,-720.32,0.0001297,2]
[355316504,1741063851413,-1041.53,0.0001297,2]
[355316505,1741063851422,-1107.79,0.0001297,2]
[355316506,1741063851432,-500.0,0.0001297,2]
[355316507,1741063851441,-790.6,0.0001297,2]
[355316511,1741063851607,-566.61011552,0.0001297,2]
[355316513,1741063851617,-729.88,0.0001297,2]
[355316515,1741063851626,-755.63,0.0001297,2]
[355316517,1741063851636,-510.87075773,0.0001297,2]
[355316519,1741063851645,-1373.19,0.0001297,2]
[355316521,1741063851654,-775.2,0.0001297,2]
[355316523,1741063851664,-736.5,0.0001297,2]
[355316525,1741063851673,-584.86,0.0001297,2]
[355316527,1741063851682,-1286.64,0.0001297,2]
[355316529,1741063851692,-951.26,0.0001297,2]
[355316531,1741063851701,-500.0,0.0001297,2]
[355316533,1741063851710,-435.99506264,0.0001297,2]
[355316535,1741063851720,-500.0,0.0001297,2]
[355316537,1741063851729,-413.70428524,0.0001297,2]
[355316539,1741063851739,-500.0,0.0001297,2]
[355316541,1741063851748,-634.36,0.0001297,2]
[355316543,1741063851757,-1008.72,0.0001297,2]
[355316545,1741063851767,-500.0,0.0001297,2]
[355316547,1741063851778,-635.86,0.0001297,2]
[355316549,1741063851787,-500.0,0.0001297,2]
[355316551,1741063851796,-437.72110374,0.0001297,2]
[355316552,1741063851805,-627.21,0.0001297,2]
[355316554,1741063851814,-500.0,0.0001297,2]
[355316556,1741063851824,-500.0,0.0001297,2]
[355316558,1741063851833,-757.67,0.0001297,2]
[355316560,1741063851842,-500.0,0.0001297,2]
[355316562,1741063851851,-449.24911926,0.0001297,2]
[355316564,1741063851861,-500.0,0.0001297,2]
[355316566,1741063851871,-500.0,0.0001297,2]
[355316568,1741063851880,-852.51,0.0001297,2]
[355316570,1741063851889,-1077.2,0.0001297,2]
[355316572,1741063851899,-679.4,0.0001297,2]
[355316574,1741063851908,-844.73,0.0001297,2]
[355316576,1741063851918,-748.46,0.0001297,2]
[355316578,1741063851927,-500.0,0.0001297,2]
[355316580,1741063851937,-500.0,0.0001297,2]
[355316582,1741063851947,-716.07,0.0001297,2]
[355316584,1741063851956,-500.0,0.0001297,2]
[355316586,1741063851966,-371.09076591,0.0001299,2]
[355316588,1741063851975,-371.09076591,0.0001299,2]
[355316590,1741063851984,-174.47,0.00012992,2]
[355316592,1741063851994,-1277.0,0.00012996,2]
[355316594,1741063852003,-2031.0,0.00012996,2]
[355316596,1741063852012,-1542.0,0.00012996,2]
[355316598,1741063852021,-571.0,0.00012996,2]
[355316600,1741063852032,-150.0,0.00012996,2]
[355316602,1741063852042,-640.0,0.00012996,2]
[355316604,1741063852051,-786.0,0.00012996,2]
[355316606,1741063852060,-541.0,0.00012996,2]
[355316607,1741063852070,-1269.0,0.00012996,2]
[355316609,1741063852079,-907.0,0.00012996,2]
[355316611,1741063852088,-1427.0,0.00012996,2]
[355316613,1741063852097,-4136.467,0.00012996,2]
[355316615,1741063852107,-201.095,0.00012996,2]
[355316617,1741063852116,-3929.0,0.00012996,2]
[355316619,1741063852125,-1012.0,0.00012996,2]
[355316621,1741063852134,-169.187,0.00012996,2]
[355316622,1741063852144,-666.0,0.00012999,2]
[355316624,1741063852154,-324.5721882,0.00013,2]
[355316626,1741063852166,-679171.2661262,0.00013,2]
[355316628,1741063852176,-168.0,0.00013,3]
[355316630,1741063852185,-353722.52149908,0.00013,2]
[355316786,1741063853813,1000.0,0.0001187,2]
[355320365,1741063909745,-884.0,0.00012692,2]
[355320366,1741063909768,-500.0,0.00012692,2]
[355320367,1741063909790,-221.50462373,0.00012692,2]
[355320368,1741063977180,250.0,0.00012048,2]
[355320369,1741063983987,500.0,0.0001018,2]
[355320370,1741063990316,153.77221282,0.00012493,2]
[355320371,1741064057072,167.55,0.00011982,2]
[355320372,1741064115659,1018.96,0.00011879,2]
[355320373,1741064122378,-300.0,0.00012584,2]
[355320374,1741064252599,234602.0,0.000125,2]
[355320376,1741064299800,4108.1071,0.000125,2]
[355320377,1741064301238,-150.0,0.00012584,2]
[355320378,1741064336848,1000.0,0.000125,2]
[355320379,1741064347655,5552.0,0.000125,3]
[355320380,1741064371934,158.82,0.0001183,2]
[355320381,1741064400990,653.74,0.00011816,2]
[355320382,1741064409279,5552.0,0.000125,5]
[355320383,1741064409944,-300.0,0.00012584,2]
[355320384,1741064497536,-163.43135064,0.00012584,2]
[355320385,1741064500405,787.31,0.00011782,2]
[355320386,1741064583082,-44.25334936,0.00012584,2]
[355320387,1741064583110,-150.0,0.00012584,2]
[355320388,1741064583141,-86.05357028,0.00012584,3]
[355320389,1741064657921,1401.13,0.00011794,2]
[355320390,1741064733659,22643.19,0.00011714,2]
[355320395,1741064834892,536.63,9.796e-05,2]
[355320396,1741064835632,536.63,0.0001206,2]
[355320399,1741064868931,259.9,0.00011713,2]
[355320400,1741064924743,180.21,0.00012049,2]
[355320401,1741064935387,-164.0,0.00012584,3]
[355320402,1741064935415,-430.15,0.00012584,2]
[355320403,1741064935443,-500.0,0.00012584,2]
[355320404,1741064935471,-500.0,0.00012584,2]
[355320405,1741064935503,-550.0,0.00012584,2]
[355320406,1741064935532,-150.0,0.00012585,2]
[355320407,1741064935564,-290.58729591,0.00012591,2]
[355320408,1741064935596,-622.28883848,0.00012591,2]
[355320409,1741064935631,-300.0,0.00012591,2]
[355320410,1741064935663,-432.40569319,0.00012592,2]
[355320411,1741064935693,-150.0,0.00012592,2]
[355320412,1741064935724,-849.1376,0.00012592,2]
[355320413,1741064935754,-947.268,0.00012592,2]
[355320414,1741064935783,-454.5127,0.00012592,2]
[355320415,1741064935812,-740.65011327,0.00012593,2]
[355320416,1741064935854,-2975.97990504,0.00012593,2]
[355320418,1741064960378,-500.0,0.0001259,2]
[355320419,1741064960411,-308.2816,0.0001259,2]
[355320420,1741064960444,-150.0,0.00012592,2]
[355320421,1741064960476,-500.0,0.00012593,2]
[355320422,1741064960508,-5823.85824377,0.00012593,2]
[355320423,1741064960658,-2682.35654725,0.00012593,2]
[355320424,1741064985342,-6109.23419067,0.00012593,2]
[355320425,1741064985373,-1372.19558092,0.00012593,2]
[355320426,1741064985504,-4141.38667517,0.00012593,2]
[355320427,1741065010507,-300.0,0.00012592,2]
[355320428,1741065010541,-4205.66217589,0.00012593,2]
[355320432,1741065032122,-2284.65336802,0.00012593,2]
[355320433,1741065032133,-1000.0,0.00012593,2]
[355320434,1741065032143,-150.0,0.00012593,2]
[355320435,1741065032153,-550.0,0.00012593,2]
[355320436,1741065032162,-171.32065869,0.00012593,2]
[355320437,1741065032172,-156.0,0.00012593,3]
[355320438,1741065032181,-69.21685562,0.00012625,2]
[355320439,1741065032193,-221.37044025,0.00012625,2]
[355320440,1741065032203,-150.99,0.00012625,2]
[355320441,1741065032212,-1232.32083021,0.00012625,2]
[355320442,1741065032465,-2454.01916979,0.00012625,2]
[355320443,1741065032475,-3669.99503137,0.00012626,2]
[355320444,1741065032487,-1834.05419453,0.00012626,2]
[355320673,1741065040151,-13472.2107741,0.00012626,2]
[355320675,1741065040161,-290.58729587,0.0001266,2]
[355320677,1741065040171,-500.82192088,0.00012673,2]
[355320679,1741065040181,-500.0,0.00012673,2]
[355320681,1741065040190,-152.36505712,0.00012673,2]
[355320683,1741065040200,-180.55196835,0.00012673,2]
[355320685,1741065040210,-285.0,0.0001268,2]
[355320687,1741065040219,-499.99,0.0001268,2]
[355320689,1741065040229,-3619.6,0.0001268,2]
[355320691,1741065040239,-313.08009529,0.00012683,2]
[355320693,1741065040249,-504.84691694,0.0001269,2]
[355320695,1741065040261,-501.04244529,0.0001269,2]
[355320697,1741065040271,-2035.06,0.0001269,2]
[355320699,1741065040280,-500.81146895,0.0001269,2]
[355320701,1741065040290,-503.30034676,0.0001269,2]
[355320703,1741065040300,-783.09,0.0001269,2]
[355320705,1741065040310,-507.63447803,0.0001269,2]
[355320707,1741065040319,-1043.78,0.0001269,2]
[355320709,1741065040329,-505.76371201,0.0001269,2]
[355320711,1741065040339,-503.44459258,0.0001269,2]
[355320713,1741065040349,-503.87497929,0.0001269,2]
[355320716,1741065040359,-500.0,0.0001269,2]
[355320718,1741065040368,-500.0,0.0001269,2]
[355320720,1741065040378,-501.38911045,0.0001269,2]
[355320722,1741065040388,-501.81442567,0.0001269,2]
[355320724,1741065040397,-500.0,0.0001269,2]
[355320726,1741065040407,-1278.82,0.0001269,2]
[355320728,1741065040418,-502.43130858,0.0001269,2]
[355320730,1741065040428,-500.0,0.0001269,2]
[355320732,1741065040438,-1418.13,0.0001269,2]
[355320734,1741065040449,-501.15441119,0.0001269,2]
[355320736,1741065040458,-865.33,0.0001269,2]
[355320738,1741065040468,-500.0,0.0001269,2]
[355320740,1741065040478,-843.99,0.0001269,2]
[355320742,1741065040489,-183.40387084,0.0001269,2]
[355320744,1741065040499,-734.61,0.0001269,2]
[355320745,1741065040511,-928.82,0.0001269,2]
[355320747,1741065040521,-500.0,0.0001269,2]
[355320749,1741065040537,-1097.7,0.0001269,2]
[355320751,1741065040546,-751.85,0.0001269,2]